bitfinex/quotes_ETHUSD_20240722
["timestamp","ask_amount","ask_price","bid_price","bid_amount"]
[1721626828882,1.32804481,3504.0,3503.5,0.08051117]
[1721626829021,1.32804481,3504.0,3503.4,0.08054889]
[1721626829358,10.3336,3504.4,3503.6,0.08047344]
[1721626829526,10.3336,3504.4,3503.5,0.08050285]
[1721626829880,10.3336,3504.4,3503.3,0.55]
[1721626830163,10.3336,3504.4,3503.6,0.08046454]
[1721626830364,10.3336,3504.4,3503.4,0.08053998]
[1721626830563,10.3336,3504.4,3503.3,0.55]
[1721626830564,5.66048,3504.3,3503.3,0.55]
[1721626830767,5.66048,3504.3,3503.5,0.08047377]
[1721626830978,5.66048,3504.3,3503.6,0.08043605]
[1721626831330,5.66048,3504.3,3503.3,0.55]
[1721626831721,5.66048,3504.3,3503.4,0.11083557]
[1721626831927,1.109868,3504.2,3503.4,0.11083557]
[1721626832364,2.85389,3504.0,3503.3,0.55]
[1721626833226,2.85396,3503.9,3503.3,0.55]
[1721626833738,2.8538,3504.1,3502.9,0.08800676]
[1721626833739,2.3539,3504.1,3502.9,0.08800676]
[1721626833959,2.85437,3503.4,3502.9,0.08800676]
[1721626834183,2.85437,3503.4,3503.0,0.11098996]
[1721626834836,2.85413,3503.7,3503.0,0.11098996]
[1721626835370,2.85412,3503.7,3503.0,0.11098996]
[1721626836381,2.85438,3503.4,3503.0,0.11098996]
[1721626836761,2.85446,3503.3,3503.0,0.11098996]
[1721626838547,2.85446,3503.3,3502.9,0.08800676]
[1721626839281,2.85446,3503.3,3503.0,0.11099886]
[1721626839430,2.85425,3503.6,3503.0,0.11099886]
[1721626839634,4.19427405,3503.6,3503.0,0.11099886]
[1721626839971,10.33405,3503.8,3503.0,2.55049886]
[1721626840469,2.85446,3503.3,3503.0,0.11099886]
[1721626840671,5.70922,3503.1,3503.0,0.11099886]
[1721626840830,2.85469,3503.0,3502.9,0.08800676]
[1721626841035,3.42562,3503.0,3502.9,0.08800676]
[1721626841333,3.005,3502.5,3501.6,0.1515275]
[1721626841643,5.7115,3501.7,3501.6,0.1515275]
[1721626842061,5.7115,3501.7,3501.0,0.0562814]
[1721626842062,2.85618,3501.2,3501.0,0.0562814]
[1721626842262,2.4185,3501.7,3501.0,0.0562814]
[1721626842263,2.85583,3501.6,3501.0,0.0562814]
[1721626842547,2.85609,3501.3,3501.0,0.0562814]
[1721626842735,2.85619,3501.2,3501.0,0.0562814]
[1721626842931,0.827933,3501.5,3501.0,0.0562814]
[1721626843595,2.85593,3501.5,3501.0,0.0562814]
[1721626844236,3.0,3501.6,3501.0,0.0562814]
[1721626844237,2.85607,3501.4,3501.0,0.0562814]
[1721626844636,5.85591,3501.6,3501.0,0.0562814]
[1721626844871,2.85624,3501.1,3501.0,0.0562814]
[1721626845101,3.0,3501.6,3501.0,0.0562814]
[1721626845102,2.8561,3501.3,3501.0,0.0562814]
[1721626845310,3.0,3501.6,3501.0,0.0562814]
[1721626845601,2.85527,3502.3,3501.1,0.55]
[1721626845737,0.86446402,3503.0,3501.1,0.55]
[1721626845738,0.43921961,3502.9,3501.1,3.40622]
[1721626845939,0.43921961,3502.9,3501.4,2.85598]
[1721626846269,0.43921961,3502.9,3501.0,0.0562814]
[1721626846270,0.43921961,3502.9,3501.6,2.85583]
[1721626846439,0.43921961,3502.9,3501.7,0.55]
[1721626846641,0.43921961,3502.9,3501.8,0.40486102]
[1721626846841,2.85476,3503.0,3501.9,0.55]
[1721626847070,7.48,3503.1,3501.9,0.64262568]
[1721626847271,2.85472,3503.0,3501.9,0.64262568]
[1721626847502,7.48,3503.1,3501.9,0.64262568]
[1721626847662,7.48,3503.1,3501.9,0.55]
[1721626847869,7.48,3503.1,3502.0,0.3384661]
[1721626848198,7.48,3503.6,3502.7,2.85487]
[1721626848383,7.48,3503.6,3502.8,0.55]
[1721626848570,7.48,3503.6,3502.9,0.43273473]
[1721626848766,7.48,3503.6,3503.0,0.55]
[1721626849087,7.48,3503.6,3503.1,0.09217053]
[1721626849261,7.48,3503.6,3503.2,0.55]
[1721626849710,7.48,3503.6,3503.3,0.09209334]
[1721626849879,7.48,3503.6,3503.4,0.55]
[1721626850069,7.48,3503.6,3502.2,2.85527]
[1721626850403,7.48,3503.6,3502.5,2.85508]
[1721626850589,7.48,3503.6,3502.6,3.55]
[1721626850768,7.48,3503.6,3502.7,0.09228225]
[1721626851125,7.48,3503.6,3502.8,0.55]
[1721626851512,10.33421,3503.6,3502.8,0.55]
[1721626852206,8.798825,3503.6,3502.3,3.0]
[1721626852513,8.798825,3503.6,3502.9,0.09220505]
[1721626852691,8.798825,3503.6,3502.0,6.1939261]
[1721626852873,2.855,3502.7,3501.8,0.40486102]
[1721626853069,7.48,3502.9,3502.1,0.09250047]
[1721626853293,2.85507,3502.6,3501.5,2.85]
[1721626853599,2.85502,3502.6,3501.6,0.09275266]
[1721626853805,2.85534,3502.3,3501.6,0.09275266]
[1721626854319,2.8551,3502.5,3501.6,0.09275266]
[1721626854470,7.48,3502.9,3501.2,2.354]
[1721626854471,3.14071,3502.4,3501.2,2.354]
[1721626854671,3.14071,3502.4,3501.7,0.09271403]
[1721626854880,3.14071,3502.4,3501.2,2.354]
[1721626855312,0.28551,3502.4,3501.3,0.09286856]
[1721626855994,0.28551,3502.4,3501.4,0.55]
[1721626856182,0.28551,3502.4,3501.5,0.09281586]
[1721626856530,0.28551,3502.4,3501.6,0.55]
[1721626856816,0.28551,3502.4,3501.7,0.0927386]
[1721626857010,2.85502,3502.6,3501.7,0.0927386]
[1721626857181,7.48,3502.9,3501.7,0.0927386]
[1721626857593,2.85502,3502.6,3501.7,0.0927386]
[1721626858634,2.8551,3502.5,3501.7,0.0927386]
[1721626858806,0.28551,3502.4,3501.7,0.0927386]
[1721626859616,2.85545,3502.1,3501.7,0.0927386]
[1721626859785,2.85545,3502.1,3501.0,0.0562814]
[1721626859786,2.85566,3501.9,3501.0,0.0562814]
[1721626859999,2.85545,3502.1,3501.0,0.0562814]
[1721626860000,2.85553,3502.0,3501.1,0.09297216]
[1721626860196,2.85553,3502.0,3501.0,0.0562814]
[1721626860392,1.319087,3501.9,3501.1,0.09297216]
[1721626860593,1.319087,3501.9,3501.0,0.0562814]
[1721626860794,2.85553,3502.0,3501.0,0.0562814]
[1721626861027,2.85553,3502.0,3501.1,0.64297216]
[1721626861638,2.85567,3501.8,3501.1,0.09297216]
[1721626862124,2.85616,3501.2,3501.1,0.09297216]
[1721626862329,2.85624,3501.1,3501.0,0.0562814]
[1721626862693,5.71248,3501.1,3501.0,0.0562814]
[1721626863521,8.56872,3501.1,3501.0,0.0562814]
[1721626864037,11.56872,3501.1,3501.0,0.0562814]
[1721626864518,14.57372,3501.1,3501.0,0.0562814]
[1721626864743,14.57372,3501.1,3498.4,4.36830578]
[1721626864744,3.005,3500.9,3498.4,0.5949896]
[1721626865036,2.85682,3500.4,3499.0,2.85795]
[1721626865243,2.85689,3500.3,3499.0,2.85795]
[1721626865396,2.85673,3500.5,3499.1,2.95177018]
[1721626865598,7.48,3500.7,3499.3,2.8577]
[1721626865829,4.033641,3500.6,3499.3,3.429265]
[1721626866203,7.48,3500.7,3499.4,5.73842]
[1721626866332,7.48,3500.7,3499.7,2.85738]
[1721626866534,7.48,3500.7,3499.8,3.40729]
[1721626866739,7.48,3500.7,3499.8,3.50098943]
[1721626867049,7.48,3500.7,3499.8,0.64369943]
[1721626867205,7.48,3500.7,3500.0,2.85713]
[1721626867407,7.48,3500.7,3500.1,1.05651177]
[1721626867645,7.48,3500.7,3500.2,0.55]
[1721626868013,7.48,3500.7,3500.3,0.09348971]
[1721626868212,15.415,3501.6,3500.3,0.09348971]
[1721626868213,2.85667,3500.6,3500.3,0.09348971]
[1721626868419,2.85667,3500.6,3499.4,5.3308]
[1721626868646,2.85667,3500.6,3499.5,3.0]
[1721626868943,2.85649,3500.8,3499.5,4.26676576]
[1721626868944,2.85673,3500.5,3499.5,4.26676576]
[1721626869110,2.85682,3500.4,3499.6,3.0]
[1721626869543,2.2906,3501.1,3499.7,0.09067391]
[1721626869724,2.85639,3501.0,3499.7,0.09067391]
[1721626869941,5.71403,3500.2,3498.9,5.85803]
[1721626870234,2.85705,3500.2,3499.0,0.91424768]
[1721626870610,10.33681,3500.4,3499.0,0.91424768]
[1721626870611,2.85707,3500.1,3499.0,0.91424768]
[1721626870811,10.33681,3500.4,3499.0,0.91424768]
[1721626870812,2.85715,3500.0,3499.0,0.91424768]
[1721626871210,2.85723,3499.9,3499.0,0.09094468]
[1721626871440,2.85706,3500.1,3498.8,2.375]
[1721626871653,2.85706,3500.1,3499.1,0.09090599]
[1721626871814,2.85706,3500.1,3498.9,0.09098337]
[1721626872247,2.85714,3500.0,3498.9,0.09098337]
[1721626872541,2.85714,3500.0,3498.9,0.92339371]
[1721626872542,3.428544,3500.0,3498.9,0.92339371]
[1721626872746,0.571404,3500.0,3499.0,0.55]
[1721626873045,0.571404,3500.0,3499.1,0.09090599]
[1721626873343,10.33685,3500.4,3499.1,0.09090599]
[1721626873848,10.33683,3500.4,3499.1,0.09090599]
[1721626874143,10.33683,3500.4,3499.2,0.55]
[1721626874552,7.48,3500.4,3499.3,0.14801779]
[1721626874853,7.48,3500.4,3499.4,0.91980178]
[1721626875143,7.48,3500.4,3499.5,0.55]
[1721626875350,7.48,3500.4,3499.6,2.85746]
[1721626875521,7.48,3500.4,3499.0,0.05714336]
[1721626875730,7.48,3500.4,3499.7,0.09071602]
[1721626875731,5.1337,3500.3,3499.7,0.09071602]
[1721626876048,7.48,3500.4,3498.7,2.8582]
[1721626876233,1.033672,3500.3,3498.8,35.28582]
[1721626876544,1.033672,3500.3,3499.1,2.85784]
[1721626876751,7.48,3500.4,3499.2,0.55]
[1721626876911,7.48,3500.4,3499.2,0.09088288]
[1721626877111,7.48,3500.4,3499.3,0.55]
[1721626877635,2.85704,3500.2,3499.4,0.09080552]
[1721626877845,2.85692,3500.3,3499.5,0.55]
[1721626878037,1.319365,3500.2,3499.5,0.64076684]
[1721626878767,2.85745,3499.7,3499.5,0.09076684]
[1721626878966,2.85746,3499.6,3499.5,0.09076684]
[1721626879132,2.85717,3500.0,3498.0,0.1561965]
[1721626879469,2.2518,3500.1,3498.4,0.09119242]
[1721626879470,2.85766,3499.4,3498.4,0.09119242]
[1721626880488,0.6428335,3499.9,3498.6,2.85827]
[1721626880489,3.5000635,3499.9,3498.6,2.85827]
[1721626880776,1.319365,3500.2,3498.8,2.85811]
[1721626881080,1.319365,3500.2,3498.9,2.94906777]
[1721626881302,2.85714,3500.0,3498.9,3.02305777]
[1721626881983,2.85714,3500.0,3498.9,0.64105777]
[1721626882189,2.85706,3500.1,3498.9,0.64105777]
[1721626882352,2.85731,3499.8,3498.9,0.64105777]
[1721626882557,2.85726,3499.9,3498.9,0.09105777]
[1721626882783,2.85726,3499.9,3498.6,2.85828]
[1721626882956,2.85733,3499.8,3498.7,0.09118536]
[1721626883152,2.8574,3499.7,3498.4,5.85844]
[1721626883355,0.7176425,3500.0,3498.8,2.85811]
[1721626883579,0.7176425,3500.0,3498.9,2.94912797]
[1721626883793,0.7176425,3500.0,3499.0,0.55]
[1721626883994,0.7176425,3500.0,3499.1,0.0910306]
[1721626884287,0.48940875,3499.9,3499.2,0.55]
[1721626884685,0.48940875,3499.9,3499.3,0.09095323]
[1721626885019,2.85745,3499.7,3499.3,0.09095323]
[1721626885158,2.85745,3499.7,3498.4,5.85844]
[1721626885352,2.85722,3499.9,3498.5,0.55]
[1721626885353,2.85748,3499.6,3498.5,0.55]
[1721626885582,2.85748,3499.6,3498.5,0.64126275]
[1721626885890,2.85748,3499.6,3498.5,0.09126275]
[1721626886092,2.85748,3499.6,3498.5,0.67879295]
[1721626886522,2.85738,3499.7,3498.5,3.53714295]
[1721626886816,3.0,3500.3,3498.9,2.85801]
[1721626887029,3.0,3500.3,3499.0,0.64106928]
[1721626887316,1.048,3500.2,3499.0,0.99097721]
[1721626887676,1.048,3500.2,3499.0,0.64106928]
[1721626887905,1.048,3500.2,3499.1,2.85784]
[1721626888104,1.048,3500.2,3499.2,0.55]
[1721626888273,1.048,3500.2,3499.2,0.64099537]
[1721626888481,7.48,3500.4,3499.2,3.64099537]
[1721626889122,7.48,3500.4,3499.3,2.85769]
[1721626889329,7.48,3500.4,3499.4,0.55]
[1721626889493,7.48,3500.4,3499.4,0.64091801]
[1721626890020,7.48,3500.4,3499.4,3.49853801]
[1721626890198,7.48,3500.4,3499.4,4.43417881]
[1721626890375,7.48,3500.4,3499.5,2.85754]
[1721626890584,7.48,3500.4,3499.6,0.64084065]
[1721626891028,7.48,3500.4,3499.6,3.49823065]
[1721626891381,7.48,3500.4,3499.7,2.85736]
[1721626891671,7.48,3500.4,3499.8,3.49799022]
[1721626891960,6.88402168,3500.4,3499.8,0.69784703]
[1721626892175,6.88402168,3500.4,3499.8,3.49800022]
[1721626892351,6.88402168,3500.4,3499.9,2.8572]
[1721626892520,6.88402168,3500.4,3500.0,4.11555184]
[1721626892719,6.88402168,3500.4,3500.0,1.34906087]
[1721626893415,6.88402168,3500.4,3500.0,4.20619087]
[1721626894347,6.88402168,3500.4,3500.0,1.34906087]
[1721626895231,6.88402168,3500.4,3500.0,4.20618087]
[1721626895431,6.88402168,3500.4,3500.1,0.72061809]
[1721626895626,6.88402168,3500.4,3500.2,0.64051863]
[1721626895829,6.88402168,3500.4,3499.5,3.0]
[1721626896040,6.88402168,3500.4,3499.9,2.85721]
[1721626896226,6.88402168,3500.4,3500.0,0.09059365]
[1721626896443,6.88402168,3500.4,3499.6,0.55]
[1721626896444,7.85808685,3500.4,3499.6,0.55]
[1721626896667,2.85713,3500.1,3498.8,2.85805]
[1721626896866,7.85808685,3500.4,3499.7,0.09070966]
[1721626896867,6.88402168,3500.4,3499.7,0.09070966]
[1721626897073,6.88402168,3500.4,3498.8,0.5949896]
[1721626897366,6.88402168,3500.4,3498.9,3.0067674]
[1721626897581,6.88402168,3500.4,3499.3,2.8577]
[1721626897774,6.88402168,3500.4,3499.0,0.09099369]
[1721626898071,6.88402168,3500.4,3499.3,2.85771]
[1721626898252,6.88402168,3500.4,3499.4,3.55]
[1721626898448,6.88402168,3500.4,3499.5,0.640771]
[1721626898772,6.88402168,3500.4,3499.8,2.85728]
[1721626899068,6.88402168,3500.4,3499.9,0.09065828]
[1721626899274,6.88402168,3500.4,3500.0,2.85708]
[1721626899473,6.88402168,3500.4,3500.1,0.55]
[1721626899651,6.88402168,3500.4,3500.1,1.26701895]
[1721626901407,6.88402168,3500.4,3500.1,4.12406895]
[1721626902814,6.88402168,3501.8,3500.2,2.41963476]
[1721626903089,5.24853,3502.5,3500.8,2.85647]
[1721626903290,5.24853,3502.5,3500.3,6.83925039]
[1721626903291,5.24853,3502.5,3500.9,3.74915619]
[1721626903591,5.24853,3502.5,3501.2,2.85615]
[1721626904091,5.24853,3502.5,3501.3,3.49610563]
[1721626904092,2.3934,3502.5,3501.3,3.49610563]
[1721626904766,5.24851,3502.5,3501.3,0.64004563]
[1721626904977,2.3934,3502.5,3501.3,3.49611563]
[1721626905181,2.3934,3502.5,3501.3,4.13135119]
[1721626905378,2.3934,3502.5,3501.3,1.27528119]
[1721626905889,2.3934,3502.5,3501.3,4.13129119]
[1721626906188,2.3934,3502.5,3501.4,2.85599]
[1721626906390,2.3934,3502.5,3501.5,0.55]
[1721626906591,2.3934,3502.5,3501.5,1.1080384]
[1721626908374,2.85521,3502.4,3501.5,1.1080384]
[1721626908575,2.85521,3502.4,3501.5,0.63991128]
[1721626910259,2.85528,3502.3,3501.5,0.63991128]
[1721626910871,2.85535,3502.2,3501.5,0.63991128]
[1721626911273,5.2485,3502.5,3501.5,0.63991128]
[1721626911485,9.73923168,3502.4,3501.5,0.63991128]
[1721626911725,2.85535,3502.2,3501.5,0.63991128]
[1721626911936,6.88402168,3502.4,3501.5,0.63991128]
[1721626912146,6.88402168,3502.4,3501.5,0.08991128]
[1721626912306,5.27303,3501.6,3501.5,0.08991128]
[1721626912627,2.85619,3501.2,3499.8,1.48942341]
[1721626912811,2.85619,3501.2,3500.0,0.93861618]
[1721626912812,2.85642,3500.9,3500.0,0.93861618]
[1721626913026,2.85626,3501.1,3500.0,0.08755795]
[1721626913331,0.285619,3501.2,3499.9,2.85721]
[1721626913332,3.141789,3501.2,3499.9,2.85721]
[1721626913549,3.141789,3501.2,3500.1,0.08751928]
[1721626913687,2.85631,3501.1,3500.0,0.08752218]
[1721626913889,2.85631,3501.1,3499.3,5.75553838]
[1721626913890,2.85645,3500.9,3500.2,0.08744485]
[1721626914120,0.285619,3501.2,3499.3,8.0165]
[1721626914121,2.85635,3501.0,3500.1,0.08748351]
[1721626914426,2.85635,3501.0,3499.7,2.85737]
[1721626914630,2.85635,3501.0,3499.8,0.37333652]
[1721626914801,3.141779,3501.2,3499.8,3.23063652]
[1721626915204,3.141779,3501.2,3499.9,0.55]
[1721626915205,0.285619,3501.2,3499.9,0.55]
[1721626915411,0.285619,3501.2,3500.0,0.08752218]
[1721626915606,2.85614,3501.3,3500.0,0.08752218]
[1721626915607,2.85614,3501.3,3500.1,0.55]
[1721626916562,9.73994168,3501.5,3500.2,2.85694]
[1721626916885,9.73994168,3501.5,3500.3,0.63740619]
[1721626916886,2.85614,3501.3,3500.3,0.63740619]
[1721626917046,2.85614,3501.3,3500.4,0.55]
[1721626917250,2.85618,3501.2,3500.4,0.55]
[1721626917585,2.85604,3501.4,3500.5,0.08732888]
[1721626917952,2.85604,3501.4,3500.2,0.55]
[1721626918147,2.85604,3501.4,3500.3,0.640704]
[1721626918392,6.88402168,3501.5,3500.4,0.55]
[1721626919198,6.88402168,3501.5,3500.5,0.08736981]
[1721626919395,9.73996168,3501.5,3500.5,0.08736981]
[1721626920097,9.73996168,3501.5,3500.6,0.55]
[1721626920296,11.24252585,3501.5,3500.4,0.55]
[1721626920685,2.85616,3501.2,3500.4,0.55]
[1721626920989,8.38658585,3501.5,3499.8,3.0]
[1721626921305,2.85629,3501.1,3499.8,5.85728]
[1721626921603,3.427535,3501.1,3499.9,0.67332401]
[1721626921813,2.85634,3501.0,3499.9,0.67332401]
[1721626922173,2.85616,3501.2,3499.9,3.53048401]
[1721626922498,8.38658585,3501.5,3500.0,3.0]
[1721626922711,2.85636,3501.0,3499.9,3.67332401]
[1721626922913,8.36178585,3501.5,3500.1,0.08751868]
[1721626922914,2.85632,3501.1,3500.1,0.08751868]
[1721626923222,2.85658,3500.7,3500.0,0.74062775]
[1721626923405,2.85658,3500.7,3500.2,0.08748002]
[1721626923568,2.85658,3500.7,3500.1,0.08751868]
[1721626923773,2.85668,3500.6,3500.3,0.08746789]
[1721626924005,2.85668,3500.6,3500.2,0.08750655]
[1721626924230,2.85674,3500.5,3499.4,3.0]
[1721626924388,2.85674,3500.5,3499.5,0.55]
[1721626924710,2.85674,3500.5,3499.5,0.08777724]
[1721626924930,2.85681,3500.4,3499.5,0.08777724]
[1721626925240,2.85706,3500.1,3498.9,2.85797]
[1721626925372,2.85706,3500.1,3499.0,0.285797]
[1721626925573,2.85729,3499.9,3499.0,0.37376765]
[1721626925772,2.85735,3499.8,3499.0,0.08797065]
[1721626926229,2.85735,3499.8,3498.6,5.24226]
[1721626926230,6.85922168,3500.4,3498.4,0.2861]
[1721626926449,2.85739,3499.7,3499.1,0.08799137]
[1721626926571,2.85746,3499.6,3498.4,0.2861]
[1721626927027,2.85746,3499.6,3498.5,0.37432353]
[1721626927170,2.85746,3499.6,3498.6,0.35844028]
[1721626927517,2.85723,3499.9,3498.6,0.35844028]
[1721626927518,2.85755,3499.5,3498.7,0.08814614]
[1721626927820,2.85731,3499.8,3498.7,0.08814614]
[1721626927821,2.8574,3499.7,3498.7,0.08814614]
[1721626928170,2.8574,3499.7,3498.5,3.14446]
[1721626928373,2.8574,3499.7,3498.8,0.08810744]
[1721626928670,2.8574,3499.7,3498.9,0.08806875]
[1721626929019,2.85722,3499.9,3498.9,0.08806875]
[1721626929309,2.85736,3499.8,3498.6,2.85826]
[1721626929684,2.85736,3499.8,3498.7,0.08814614]
[1721626930282,2.85739,3499.7,3498.7,0.08814614]
[1721626930739,2.85739,3499.7,3498.5,6.14445]
[1721626930884,2.85739,3499.7,3498.8,0.08812764]
[1721626931084,2.85739,3499.7,3498.6,0.55]
[1721626931386,2.85739,3499.7,3498.9,0.0880901]
[1721626931599,2.85739,3499.7,3498.7,0.75761249]
[1721626931897,2.85739,3499.7,3498.7,0.669445]
[1721626932108,2.85739,3499.7,3498.8,0.08812879]
[1721626932712,2.8574,3499.7,3498.8,0.08812879]
[1721626933028,2.4603,3499.4,3498.8,0.08812879]
[1721626933187,2.8578,3499.2,3498.8,0.08812879]
[1721626933391,2.85796,3499.0,3498.2,3.0]
[1721626933584,2.85796,3499.0,3498.0,0.1561965]
[1721626933585,2.85796,3499.0,3498.9,0.08810049]
[1721626933889,0.285796,3499.0,3498.0,0.1561965]
[1721626934088,2.85787,3499.1,3498.0,0.1561965]
[1721626934516,2.85772,3499.3,3498.4,0.088373]
[1721626934727,2.85772,3499.3,3498.0,3.0149065]
[1721626934906,5.31793,3499.4,3498.0,0.21336709]
[1721626935109,2.4603,3499.4,3498.4,0.63839724]
[1721626935308,9.71661168,3499.7,3498.5,2.85835]
[1721626935309,6.85922168,3499.7,3498.5,2.85835]
[1721626935619,6.85922168,3499.7,3499.0,2.85794]
[1721626935918,6.85922168,3499.7,3499.2,2.85779]
[1721626936127,6.85922168,3499.7,3499.3,0.55]
[1721626936293,6.85922168,3499.7,3499.6,2.85746]
[1721626936497,6.85922168,3500.5,3499.6,3.40746]
[1721626936816,6.85922168,3500.8,3499.7,0.858808]
[1721626937021,6.85922168,3500.8,3500.2,2.85696]
[1721626937180,6.85922168,3500.8,3500.3,2.85689]
[1721626937388,19.26922168,3501.2,3500.3,0.08747101]
[1721626937580,19.26922168,3501.2,3500.3,2.94428101]
[1721626937791,19.26922168,3501.2,3500.4,2.85681]
[1721626938031,19.26922168,3501.2,3500.4,3.52134289]
[1721626938395,19.26922168,3501.2,3500.5,0.55]
[1721626938791,19.26922168,3501.2,3500.6,0.08724628]
[1721626939202,19.26922168,3501.2,3500.7,0.55]
[1721626939593,19.26922168,3501.2,3500.5,0.55]
[1721626939815,19.26922168,3501.2,3500.5,0.94838905]
[1721626940020,19.26922168,3501.2,3500.6,0.08724628]
[1721626940208,19.26922168,3501.2,3500.7,0.55]
[1721626940403,19.26922168,3501.2,3500.6,0.08724628]
[1721626940625,22.12538168,3501.2,3499.8,2.8573]
[1721626940928,19.26922168,3501.2,3500.0,2.85707]
[1721626941125,19.26922168,3501.2,3500.1,0.55]
[1721626941327,2.85614,3501.3,3500.1,0.55]
[1721626941833,13.59800585,3501.5,3500.1,0.55]
[1721626941834,2.85641,3500.9,3500.1,0.55]
[1721626942048,10.74208585,3501.5,3499.4,2.323]
[1721626942049,3.005,3501.4,3499.4,2.323]
[1721626942205,3.005,3501.4,3499.0,1.4897296]
[1721626942206,2.85689,3500.3,3500.2,0.08740148]
[1721626942410,2.85689,3500.3,3499.0,2.85789]
[1721626942607,2.85689,3500.3,3499.1,2.85786]
[1721626942928,2.85673,3500.5,3499.2,2.85776]
[1721626943133,2.85673,3500.5,3499.2,2.94554821]
[1721626943432,2.85673,3500.5,3499.3,0.58034982]
[1721626943728,2.85657,3500.7,3499.4,2.94532085]
[1721626944236,9.71563168,3500.9,3499.5,2.85751]
[1721626944534,2.85649,3500.8,3499.6,0.0876335]
[1721626944693,2.85649,3500.8,3499.6,0.55]
[1721626944694,2.85657,3500.7,3499.6,0.55]
[1721626944897,2.85674,3500.5,3499.7,0.08759482]
[1721626945132,4.35592817,3500.8,3499.3,0.58034982]
[1721626945133,1.49943817,3500.8,3499.3,0.58034982]
[1721626945343,2.85702,3500.2,3499.8,0.08755615]
[1721626945509,2.85702,3500.2,3498.9,5.858]
[1721626945710,9.71596168,3500.5,3499.9,0.08751748]
[1721626945912,2.85674,3500.5,3499.1,2.85785]
[1721626946113,2.85683,3500.4,3500.0,0.08747881]
[1721626946319,3.428249,3500.3,3499.1,2.85787]
[1721626946621,0.571349,3500.3,3500.1,0.08744015]
[1721626946820,2.85676,3500.5,3499.2,2.85778]
[1721626947022,2.85676,3500.5,3499.3,0.55]
[1721626947238,2.85676,3500.5,3499.3,0.63774953]
[1721626948047,2.85676,3500.5,3499.3,3.49545953]
[1721626948216,2.85689,3500.3,3499.3,0.63774953]
[1721626948541,1.04255124,3500.7,3499.3,0.89956995]
[1721626948840,3.89913124,3500.7,3499.4,0.08771085]
[1721626949050,3.89913124,3500.7,3499.5,0.55]
[1721626949510,2.85667,3500.6,3499.5,0.55]
[1721626949711,2.85691,3500.3,3499.6,0.08764616]
[1721626950118,2.85698,3500.2,3498.9,5.85803]
[1721626950344,2.85698,3500.2,3499.7,0.08760749]
[1721626950652,1.07584429,3500.6,3499.1,3.0]
[1721626950941,1.07584429,3500.6,3499.0,3.40795]
[1721626950942,2.85696,3500.3,3499.2,0.55]
[1721626951131,2.85696,3500.3,3499.2,0.08780088]
[1721626951333,2.85699,3500.2,3499.3,0.55]
[1721626951537,1.07584429,3500.6,3499.3,0.6377622]
[1721626951538,2.85712,3500.1,3499.3,0.6377622]
[1721626951852,3.005,3500.3,3499.3,0.0877622]
[1721626952033,2.85763,3499.4,3499.3,0.0877622]
[1721626952354,2.85763,3499.4,3498.3,0.35163926]
[1721626952355,2.85775,3499.3,3498.3,0.35163926]
[1721626952651,2.85763,3499.4,3499.3,0.0877622]
[1721626952874,1.25743217,3499.4,3498.3,0.35163926]
[1721626953053,2.85747,3499.6,3498.3,3.21013926]
[1721626953359,2.85731,3499.8,3498.4,0.08811042]
[1721626953652,6.85922168,3500.0,3498.8,2.85812]
[1721626953852,6.85922168,3500.0,3498.9,3.40801]
[1721626954150,6.85922168,3500.0,3499.1,2.8578]
[1721626954352,6.85922168,3500.3,3499.2,0.64109675]
[1721626954663,2.85698,3500.2,3499.3,0.55]
[1721626955015,2.85714,3500.0,3499.4,0.08782851]
[1721626955348,2.85698,3500.2,3499.3,0.55]
[1721626955515,2.85698,3500.2,3499.5,0.08778984]
[1721626955717,2.85707,3500.1,3499.3,0.55]
[1721626956116,9.71612168,3500.3,3499.3,0.55]
[1721626956117,2.85698,3500.2,3499.4,0.08782851]
[1721626956314,2.85698,3500.2,3499.3,0.55]
[1721626956517,2.85698,3500.2,3499.5,0.08778984]
[1721626956780,6.85922168,3500.3,3499.3,0.340795]
[1721626957088,2.85704,3500.2,3499.6,0.08775116]
[1721626957221,6.85922168,3500.3,3499.1,0.55]
[1721626957567,2.85704,3500.2,3499.2,0.08790588]
[1721626957774,2.85707,3500.1,3499.3,0.55]
[1721626958123,2.85707,3500.1,3499.4,0.08782851]
[1721626958340,2.85707,3500.1,3499.3,0.55]
[1721626958549,2.85707,3500.1,3499.5,0.08778984]
[1721626958968,2.85714,3500.0,3499.3,0.55]
[1721626959264,6.85922168,3500.3,3499.3,0.60715163]
[1721626959478,6.85922168,3500.3,3499.4,0.30081516]
[1721626959754,6.85922168,3500.3,3499.5,0.55]
[1721626960060,6.85922168,3500.3,3499.6,5.31905]
[1721626960352,6.85922168,3500.3,3499.8,2.85729]
[1721626960551,9.71549168,3501.1,3499.9,0.88111397]
[1721626960753,2.4095,3501.2,3499.9,0.88111397]
[1721626960754,2.85633,3501.0,3499.9,1.43111397]
[1721626960916,2.85633,3501.0,3500.0,0.08467373]
[1721626961123,2.85633,3501.0,3500.1,0.55]
[1721626961445,2.85633,3501.0,3500.1,0.08463506]
[1721626961446,2.85697,3500.2,3500.1,0.08463506]
[1721626961752,2.85697,3500.2,3499.1,3.0]
[1721626961929,2.85706,3500.1,3499.2,0.55]
[1721626962130,5.4882,3500.4,3498.7,2.95713838]
[1721626962342,6.03702,3500.4,3498.8,4.52750217]
[1721626962647,6.03702,3500.4,3498.9,0.99352188]
[1721626962648,2.85721,3500.0,3498.9,0.99352188]
[1721626962845,2.857,3500.2,3498.9,3.85149188]
[1721626963144,2.85693,3500.3,3499.0,2.85795]
[1721626963451,6.03702,3500.4,3499.1,2.85785]
[1721626963452,5.34004,3500.4,3499.1,2.85785]
[1721626963632,2.85691,3500.3,3499.2,0.43480302]
[1721626963832,2.85699,3500.2,3498.9,1.49018016]
[1721626964018,2.4832,3500.4,3498.8,6.98882867]